[Event "Torneo Interdepartamental 2019"]
[Site "Montevideo"]
[Date "2019.08.24"]
[Round "2.9"]
[White "Ponce, Leonardo"]
[Black "Malan, Lucia"]
[Result "0-1"]
[ECO "D00"]
[WhiteElo "1690"]
[BlackElo "1831"]
[Annotator "NA"]
[PlyCount "112"]
[EventDate "2019.08.23"]
[EventType "team-tourn"]
[EventCountry "URU"]
[SourceTitle "playchess.com"]
[Source "ChessBase"]
[SourceQuality "1"]
[TimeControl "5400+30"]

1. d4 {[%emt 0:00:00]} d5 {[%emt 0:00:00]} 2. Bf4 {[%emt 0:00:21]} Nf6 {[%emt 0:00:17]} 3. e3 {[%emt 0:00:33]} Bf5 {[%emt 0:00:27]} 4. c4 {[%emt 0:02:05]} e6 {[%emt 0:01:11]} 5. Nc3 {[%emt 0:01:25]} (5. Nf3 Bxb1 6. Rxb1 Bb4+ 7. Ke2 dxc4 8. Qa4+ Nc6 9. Ne5 a5 10. Nxc6 Qd7 11. Rc1 Nd5 12. Rxc4 Nb6 13. Qc2 Nxc4 14. Nxb4 Nxb2 {1-0 (41) Nakamura,H (2769)-Giri,A (2782) Leuven 2018}) 5... Be7 {[%emt 0:02:00]} 6. Nf3 {[%emt 0:01:18] D00: 1 d4 d5: Unusual lines} O-O {[%emt 0:00:47]} 7. Rc1 {[%emt 0:03:28]} c5 $146 {[%emt 0:01:20]} ({Predecessor:} 7... c6 8. Be2 Nbd7 9. O-O h6 10. Bd3 Bxd3 11. Qxd3 Qa5 12. cxd5 Nxd5 13. Nxd5 exd5 {½-½ (31) Skytte,R (2412)-Chatalbashev,B (2547) Kolding 2016}) 8. dxc5 {[%emt 0:04:30]} dxc4 {[%emt 0:06:12]} 9. Bxc4 {[%emt 0:03:42]} Bxc5 {[%emt 0:01:02]} 10. O-O {[%emt 0:00:27]} Nc6 {[%emt 0:01:33]} 11. a3 {[%emt 0:02:08]} Rc8 {[%emt 0:03:42]} 12. Nh4 {[%emt 0:07:45]} Bg4 {[%emt 0:05:09]} 13. Qe1 {[%emt 0:01:58]} Nh5 {[%emt 0:05:36]} 14. Bg3 {[%emt 0:02:23]} Nxg3 {[%emt 0:02:59]} 15. hxg3 {[%emt 0:00:37]} Ne5 {[%emt 0:02:32]} 16. Be2 {[%emt 0:01:32]} Nd3 {[%emt 0:05:37]} 17. Bxd3 {[%emt 0:01:50]} Qxd3 {[%emt 0:00:06]} 18. Nf3 {[%emt 0:00:38]} Bxf3 {[%emt 0:07:13]} 19. gxf3 {[%emt 0:00:37]} Rfd8 {[%emt 0:00:46]} 20. Ne4 {[%emt 0:03:26]} Bb6 {[%emt 0:02:22]} 21. Kg2 {[%emt 0:06:55]} Rc2 {[%emt 0:03:10]} 22. Rxc2 {[%emt 0:04:27]} Qxc2 {[%emt 0:00:06]} 23. Qc3 {[%emt 0:05:07]} Qxc3 {[%emt 0:01:23]} 24. Nxc3 {[%emt 0:00:33]} Rd2 {[%emt 0:00:51]} 25. Nd1 {[%emt 0:08:32]} Bd8 {[%emt 0:01:57]} 26. f4 {[%emt 0:01:12]} Bf6 {[%emt 0:00:30]} 27. Nc3 {[%emt 0:01:16]} Rxb2 {[%emt 0:00:56]} 28. Ne4 {[%emt 0:00:26]} Ra2 {[%emt 0:01:51]} 29. Rc1 {[%emt 0:02:25]} h6 {[%emt 0:01:51]} 30. Rc8+ {[%emt 0:00:22]} Kh7 {[%emt 0:00:06]} 31. Rc7 {[%emt 0:00:02]} Kg6 {[%emt 0:01:00]} 32. Rxb7 {[%emt 0:00:24]} Rxa3 {[%emt 0:00:27]} 33. g4 {[%emt 0:00:34]} a5 {[%emt 0:04:10]} 34. Ra7 {[%emt 0:01:33]} Ra2 {[%emt 0:07:27]} 35. Kg3 {[%emt 0:04:05]} a4 $11 {[%emt 0:01:08]} 36. Nd6 {[%emt 0:00:38]} Ra1 {[%emt 0:02:42]} 37. Nxf7 {[%emt 0:00:51]} a3 {[%emt 0:01:33]} 38. Ne5+ {[%emt 0:00:36]} Kh7 {[%emt 0:02:33]} 39. Kf3 {[%emt 0:02:19]} Bh4 {[%emt 0:04:57]} 40. Ra6 {[%emt 0:01:48]} a2 {[%emt 0:01:58]} 41. Nd3 {[%emt 0:03:12]} Rd1 {[%emt 0:00:27]} 42. Rxa2 {[%emt 0:01:03]} Rxd3 {[%emt 0:00:06]} 43. Ra6 {[%emt 0:00:17]} e5 {[%emt 0:01:51]} 44. fxe5 {[%emt 0:00:49]} Rd2 {[%emt 0:00:05]} 45. e6 {[%emt 0:00:42]} Rxf2+ {[%emt 0:00:09]} 46. Ke4 {[%emt 0:00:14]} Rd2 {[%emt 0:02:18]} 47. Ra7 {[%emt 0:00:34]} Rd8 {[%emt 0:00:22]} 48. e7 {[%emt 0:00:43]} Re8 {[%emt 0:00:13]} 49. Kd5 {[%emt 0:00:53]} Rxe7 {[%emt 0:00:10]} 50. Rxe7 {[%emt 0:01:07]} Bxe7 {[%emt 0:00:06]} 51. Ke6 {[%emt 0:00:05]} Bc5 {[%emt 0:00:19]} 52. e4 {[%emt 0:00:08]} Kg6 {[%emt 0:00:08]} 53. Kd5 {[%emt 0:01:59]} Ba3 {[%emt 0:00:08]} 54. e5 {[%emt 0:00:23]} Kg5 {[%emt 0:00:07]} 55. Ke6 {[%emt 0:01:32]} Kxg4 {[%emt 0:00:44]} 56. Kf7 {[%emt 0:00:47]} h5 0-1

[Event "Torneo Interdepartamental 2019"]
[Site "Montevideo"]
[Date "2019.08.24"]
[Round "2.10"]
[White "Carvalho, Guillermo"]
[Black "Larrea, Osvaldo"]
[Result "1-0"]
[ECO "A80"]
[WhiteElo "2180"]
[BlackElo "1657"]
[Annotator "ChessBase"]
[PlyCount "67"]
[EventDate "2019.08.23"]
[EventType "team-tourn"]
[EventCountry "URU"]
[SourceTitle "playchess.com"]
[Source "ChessBase"]
[SourceQuality "1"]
[TimeControl "5400+30"]

1. d4 {[%emt 0:01:34]} f5 {[%emt 0:00:07]} 2. Nc3 {[%emt 0:00:21]} Nf6 3. Bg5 {[%emt 0:04:04]} e6 {[%emt 0:00:29]} 4. e4 {[%emt 0:03:08]} fxe4 {[%emt 0:01:49]} 5. Nxe4 {[%emt 0:00:22]} Be7 {[%emt 0:00:16]} 6. Bxf6 {[%emt 0:00:26]} Bxf6 {[%emt 0:00:17]} 7. Qh5+ {[%emt 0:01:07]} g6 {[%emt 0:02:18]} 8. Qh6 {[%emt 0:05:19]} Qe7 {[%emt 0:00:55]} 9. Nxf6+ {[%emt 0:05:15]} Qxf6 {[%emt 0:00:20]} 10. O-O-O {[%emt 0:02:46]} b6 {[%emt 0:02:30]} 11. h4 {[%emt 0:02:32]} Qf8 {[%emt 0:03:55]} 12. Qe3 {[%emt 0:01:36]} d5 {[%emt 0:03:05]} 13. h5 {[%emt 0:02:23]} Bd7 {[%emt 0:03:55]} 14. Bd3 {[%emt 0:06:28]} Kd8 {[%emt 0:09:37]} 15. hxg6 {[%emt 0:02:47]} hxg6 {[%emt 0:00:52]} 16. Nf3 {[%emt 0:01:25]} Nc6 {[%emt 0:02:40]} 17. Ba6 {[%emt 0:07:33]} Nb4 {[%emt 0:03:56]} 18. Qg5+ {[%emt 0:04:01]} Ke8 {[%emt 0:01:47]} 19. Qxg6+ {[%emt 0:07:08]} Ke7 {[%emt 0:02:32]} 20. Ne5 {[%emt 0:11:53]} Be8 {[%emt 0:07:04]} 21. Qg5+ {[%emt 0:06:02]} Kd6 {[%emt 0:00:46]} 22. Rxh8 {[%emt 0:01:09]} Qxh8 {[%emt 0:00:22]} 23. Qf4 {[%emt 0:03:29]} Ke7 {[%emt 0:00:30]} 24. Bd3 {[%emt 0:01:57]} Nxd3+ {[%emt 0:03:21]} 25. Nxd3 {[%emt 0:00:16]} Kd8 {[%emt 0:06:28]} 26. Re1 {[%emt 0:01:31]} Qg8 {[%emt 0:03:08]} 27. Qf6+ {[%emt 0:01:56]} Kd7 {[%emt 0:03:57]} 28. Nf4 {[%emt 0:00:22]} Bf7 {[%emt 0:00:50]} 29. Nxd5 {[%emt 0:01:32]} exd5 {[%emt 0:03:06]} 30. Re7+ {[%emt 0:00:09]} Kc8 {[%emt 0:01:03]} 31. Qxf7 {[%emt 0:03:21]} Qxf7 {[%emt 0:02:59]} 32. Rxf7 {[%emt 0:00:06]} Kb7 {[%emt 0:00:12]} 33. g4 {[%emt 0:00:40]} Rg8 {[%emt 0:00:33]} 34. f3 {[%emt 0:00:06]} 1-0

[Event "Torneo Interdepartamental 2019"]
[Site "Montevideo"]
[Date "2019.08.24"]
[Round "2.11"]
[White "De La Torre, Andres"]
[Black "Lanzilotta, Marcelo"]
[Result "0-1"]
[ECO "A04"]
[WhiteElo "1641"]
[BlackElo "1970"]
[Annotator "NA"]
[PlyCount "40"]
[EventDate "2019.08.23"]
[EventType "team-tourn"]
[EventCountry "URU"]
[SourceTitle "playchess.com"]
[Source "ChessBase"]
[SourceQuality "1"]
[TimeControl "5400+30"]

1. Nf3 {[%emt 0:00:42]} c5 {[%emt 0:01:32]} 2. g3 {[%emt 0:00:47]} Nc6 {[%emt 0:00:11]} 3. Bg2 {[%emt 0:00:12]} d5 {[%emt 0:00:09]} 4. d3 {[%emt 0:00:50]} e5 {[%emt 0:00:08]} 5. c3 {[%emt 0:01:03]} Nge7 {[%emt 0:00:18]} 6. Nbd2 {[%emt 0:02:24]} Ng6 {[%emt 0:00:09]} 7. e4 {[%emt 0:02:34]} d4 {[%emt 0:00:02]} 8. cxd4 {[%emt 0:00:52]} cxd4 {[%emt 0:00:02]} 9. Nc4 {[%emt 0:03:08]} h5 {[%emt 0:07:33]} 10. Qb3 {[%emt 0:07:51]} Be7 {[%emt 0:02:16]} 11. Qb5 {[%emt 0:07:20]} Bd7 {[%emt 0:02:47]} 12. Qd5 {[%emt 0:06:00]} Nb4 {[%emt 0:07:19]} 13. Nd6+ {[%emt 0:00:31]} Bxd6 {[%emt 0:00:02]} 14. Qxd6 {[%emt 0:00:09]} Nxd3+ {[%emt 0:01:09]} 15. Ke2 {[%emt 0:01:07]} Nxc1+ {[%emt 0:00:05]} 16. Kd2 {[%emt 0:01:32]} Nd3 {[%emt 0:00:24]} 17. Bf1 {[%emt 0:08:33]} Nxf2 {[%emt 0:02:15]} 18. Bd3 {[%emt 0:05:18]} Nxd3 {[%emt 0:00:21]} 19. Nxd4 exd4 20. Qxd4 {[%emt 0:09:22]} Nge5 {[%emt 0:00:56]} 0-1

[Event "Torneo Interdepartamental 2019"]
[Site "Montevideo"]
[Date "2019.08.24"]
[Round "3.6"]
[White "Suarez, Pedro"]
[Black "Lanzilotta, Marcelo"]
[Result "0-1"]
[ECO "A59"]
[WhiteElo "2040"]
[BlackElo "1970"]
[Annotator "NA RC"]
[PlyCount "60"]
[EventDate "2019.08.23"]
[EventType "team-tourn"]
[EventCountry "URU"]
[SourceTitle "playchess.com"]
[Source "ChessBase"]
[SourceQuality "1"]
[TimeControl "5400+30"]

1. d4 {[%emt 0:00:00]} Nf6 {[%emt 0:00:00]} 2. c4 {[%emt 0:00:00]} c5 {[%emt 0:00:00]} 3. d5 {[%emt 0:00:00]} b5 {[%emt 0:00:00]} 4. cxb5 {[%emt 0:00:03]} a6 {[%emt 0:00:00]} 5. bxa6 {[%emt 0:00:08]} Bxa6 {[%emt 0:00:00]} 6. Nc3 {[%emt 0:00:10]} g6 {[%emt 0:00:02]} 7. e4 {[%emt 0:00:08]} Bxf1 {[%emt 0:00:04]} 8. Kxf1 {[%emt 0:00:03]} d6 {[%emt 0:00:08]} 9. Nge2 {[%emt 0:01:45]} Bg7 {[%emt 0:00:20]} 10. h3 {[%emt 0:00:10]} O-O {[%emt 0:00:05]} 11. Kg1 {[%emt 0:00:03]} Nbd7 {[%emt 0:00:39]} 12. Kh2 {[%emt 0:00:24]} Qb6 {[%emt 0:01:35]} 13. Qc2 {[%emt 0:01:44]} Rfb8 {[%emt 0:00:06]} 14. Rb1 {[%emt 0:03:18]} Qc7 {[%emt 0:03:36]} 15. Rd1 {[%emt 0:06:30]} Rb4 {[%emt 0:08:48]} 16. a3 {[%emt 0:02:52]} Rb7 {[%emt 0:00:00]} 17. Be3 {[%emt 0:07:19]} Ne5 {[%emt 0:01:47]} 18. Na2 {[%emt 0:05:01]} Rab8 {[%emt 0:02:42]} 19. Nec3 {[%emt 0:01:15]} Rb3 {[%emt 0:00:45]} 20. Qe2 {[%emt 0:06:31]} Qd7 {[%emt 0:13:00]} 21. f4 {[%emt 0:15:51]} Neg4+ {[%emt 0:00:04]} 22. hxg4 {[%emt 0:08:51]} Qxg4 23. Rd2 {[%emt 0:18:35]} Qh4+ {[%emt 0:05:31]} 24. Kg1 {[%emt 0:00:05]} Ng4 {[%emt 0:00:36]} 25. e5 {[%emt 0:06:41]} dxe5 {[%emt 0:07:26]} 26. Bxc5 exf4 {[%emt 0:05:59]} 27. Rbd1 {[%emt 0:03:34]} Qh2+ {[%emt 0:02:01]} 28. Kf1 {[%emt 0:00:04]} Qh1+ {[%emt 0:00:12]} 29. Bg1 {[%emt 0:00:09]} Ne3+ {[%emt 0:00:01]} 30. Kf2 {[%emt 0:00:57]} Qxg2+ {[%emt 0:00:17]} 0-1

[Event "Torneo Interdepartamental 2019"]
[Site "Montevideo"]
[Date "2019.08.24"]
[Round "3.7"]
[White "Barboza, Mauro"]
[Black "Vaz Lacuesta, Leonardo"]
[Result "1/2-1/2"]
[ECO "C01"]
[WhiteElo "1925"]
[BlackElo "2098"]
[Annotator "NA RC"]
[PlyCount "80"]
[EventDate "2019.08.23"]
[EventType "team-tourn"]
[EventCountry "URU"]
[SourceTitle "playchess.com"]
[Source "ChessBase"]
[SourceQuality "1"]
[TimeControl "5400+30"]

1. e4 {[%emt 0:00:00]} e6 {[%emt 0:00:05]} 2. d4 {[%emt 0:00:00]} d5 {[%emt 0:00:21]} 3. exd5 {[%emt 0:00:00]} exd5 {[%emt 0:00:06]} 4. Nf3 {[%emt 0:00:00]} Nf6 {[%emt 0:01:19]} 5. Bd3 {[%emt 0:00:14]} Be7 {[%emt 0:01:09]} 6. h3 {[%emt 0:00:10]} O-O {[%emt 0:00:06]} 7. O-O c5 8. c3 {[%emt 0:03:41]} Nc6 {[%emt 0:01:36]} 9. Bf4 {[%emt 0:07:42]} cxd4 {[%emt 0:02:01]} 10. Nxd4 {[%emt 0:00:21]} Nxd4 {[%emt 0:01:20]} 11. cxd4 Qb6 12. Qd2 {[%emt 0:10:30]} Be6 {[%emt 0:01:21]} 13. Nc3 {[%emt 0:00:15]} Rac8 {[%emt 0:00:30]} 14. Rac1 {[%emt 0:01:57]} Kh8 {[%emt 0:02:46]} 15. Bb1 {[%emt 0:00:13]} Ne4 {[%emt 0:21:27]} 16. Nxe4 dxe4 17. Bxe4 {[%emt 0:10:36]} Bxa2 {[%emt 0:03:08]} 18. Bf5 {[%emt 0:07:44]} Be6 {[%emt 0:02:41]} 19. Bxe6 {[%emt 0:02:27]} Qxe6 {[%emt 0:00:16]} 20. d5 {[%emt 0:03:38]} Qf5 {[%emt 0:09:45]} 21. d6 {[%emt 0:00:53]} Bf6 {[%emt 0:00:29]} 22. Rxc8 {[%emt 0:00:25]} Rxc8 {[%emt 0:26:57]} 23. d7 {[%emt 0:00:52]} Rd8 {[%emt 0:00:29]} 24. Re1 {[%emt 0:01:12]} g5 {[%emt 0:01:02]} 25. Re8+ {[%emt 0:02:52]} Kg7 {[%emt 0:00:23]} 26. Rxd8 {[%emt 0:12:47]} Bxd8 {[%emt 0:00:07]} 27. Be3 {[%emt 0:02:07]} f6 {[%emt 0:07:37]} 28. Bxa7 {[%emt 0:02:48]} Kf7 {[%emt 0:00:11]} 29. b4 {[%emt 0:01:11]} b6 {[%emt 0:02:55]} 30. Bb8 {[%emt 0:01:32]} Qe6 {[%emt 0:02:57]} 31. Qd3 {[%emt 0:01:52]} Kg7 {[%emt 0:03:31]} 32. f4 {[%emt 0:03:14]} h6 {[%emt 0:01:38]} 33. f5 {[%emt 0:02:22]} Qe1+ {[%emt 0:01:10]} 34. Kh2 {[%emt 0:00:11]} Qxb4 {[%emt 0:01:53]} 35. Bd6 {[%emt 0:01:11]} Qe1 {[%emt 0:02:16]} 36. Qd5 {[%emt 0:03:00]} h5 {[%emt 0:00:56]} 37. Qe6 {[%emt 0:01:39]} Qd2 {[%emt 0:00:04]} 38. Bb8 {[%emt 0:02:41]} Qc1 {[%emt 0:00:38]} 39. Bd6 {[%emt 0:04:54]} Qd2 {[%emt 0:00:13]} 40. Bb8 {[%emt 0:05:12]} Qc1 {[%emt 0:00:07]} 1/2-1/2

[Event "Torneo Interdepartamental 2019"]
[Site "Montevideo"]
[Date "2019.08.24"]
[Round "3.9"]
[White "Pelaez, Diego"]
[Black "Ibanez, Marcelo"]
[Result "0-1"]
[ECO "E15"]
[WhiteElo "1619"]
[BlackElo "2029"]
[Annotator "NA RC"]
[PlyCount "56"]
[EventDate "2019.08.23"]
[EventType "team-tourn"]
[EventCountry "URU"]
[SourceTitle "playchess.com"]
[Source "ChessBase"]
[SourceQuality "1"]
[TimeControl "5400+30"]

1. d4 {[%emt 0:00:00]} Nf6 {[%emt 0:04:11]} 2. c4 {[%emt 0:00:00]} e6 {[%emt 0:00:10]} 3. Nf3 {[%emt 0:00:13]} b6 {[%emt 0:00:06]} 4. g3 {[%emt 0:00:50]} Bb4+ {[%emt 0:00:35]} 5. Bd2 {[%emt 0:00:32]} Be7 {[%emt 0:00:05]} 6. Bg2 {[%emt 0:00:15]} O-O {[%emt 0:01:30]} 7. O-O {[%emt 0:01:10]} Ba6 {[%emt 0:01:43]} 8. Qc2 {[%emt 0:04:13]} d5 {[%emt 0:00:38]} 9. b3 {[%emt 0:03:00]} Nbd7 {[%emt 0:01:15]} 10. Bf4 {[%emt 0:08:33]} Rc8 {[%emt 0:01:44]} 11. Re1 {[%emt 0:05:41]} c5 {[%emt 0:00:23]} 12. Nbd2 {[%emt 0:03:45]} cxd4 {[%emt 0:02:51]} 13. Ne5 {[%emt 0:10:49]} Bb4 {[%emt 0:03:31]} 14. a3 {[%emt 0:09:59]} Bc3 {[%emt 0:06:34]} 15. Rac1 {[%emt 0:05:47]} Nxe5 {[%emt 0:03:09]} 16. Bxe5 {[%emt 0:00:18]} Ng4 {[%emt 0:00:23]} 17. Bf4 {[%emt 0:08:57]} g5 {[%emt 0:03:47]} 18. Bxg5 {[%emt 0:03:08]} Qxg5 {[%emt 0:00:08]} 19. Nf3 {[%emt 0:00:06]} Qh6 {[%emt 0:02:28]} 20. Red1 {[%emt 0:00:39]} dxc4 {[%emt 0:09:00]} 21. b4 {[%emt 0:02:35]} Nxf2 {[%emt 0:10:01]} 22. Kxf2 {[%emt 0:06:11]} Qe3+ {[%emt 0:00:03]} 23. Kf1 {[%emt 0:00:15]} d3 {[%emt 0:00:40]} 24. Qa2 {[%emt 0:05:12]} Bb2 {[%emt 0:02:26]} 25. Qxb2 {[%emt 0:10:54]} c3 {[%emt 0:02:26]} 26. Rxc3 {[%emt 0:01:28]} dxe2+ {[%emt 0:00:36]} 27. Ke1 {[%emt 0:00:12]} exd1=Q+ {[%emt 0:00:30]} 28. Kxd1 {[%emt 0:00:18]} Rxc3 {[%emt 0:00:15]} 0-1

[Event "Torneo Interdepartamental 2019"]
[Site "Montevideo"]
[Date "2019.08.24"]
[Round "3.11"]
[White "Arias Bouzada, Jorge"]
[Black "Castro, Cesar"]
[Result "1/2-1/2"]
[ECO "D51"]
[WhiteElo "2088"]
[BlackElo "2082"]
[Annotator "NA RC"]
[PlyCount "50"]
[EventDate "2019.08.23"]
[EventType "team-tourn"]
[EventCountry "URU"]
[SourceTitle "playchess.com"]
[Source "ChessBase"]
[SourceQuality "1"]
[TimeControl "5400+30"]

1. c4 {[%emt 0:00:03]} Nf6 {[%emt 0:00:00]} 2. Nc3 {[%emt 0:00:06]} e6 {[%emt 0:00:00]} 3. d4 {[%emt 0:00:07]} d5 {[%emt 0:00:00]} 4. Bg5 {[%emt 0:00:19]} Nbd7 {[%emt 0:00:07]} 5. Nf3 {[%emt 0:00:17]} c6 {[%emt 0:00:09]} 6. cxd5 {[%emt 0:00:05]} exd5 {[%emt 0:00:07]} 7. e3 {[%emt 0:00:02]} Be7 {[%emt 0:00:11]} 8. Bd3 {[%emt 0:00:17]} O-O {[%emt 0:00:12]} 9. O-O {[%emt 0:00:03]} Re8 {[%emt 0:00:07]} 10. a3 {[%emt 0:02:19]} a5 {[%emt 0:00:11]} 11. Qc2 {[%emt 0:00:51]} g6 {[%emt 0:00:10]} 12. Rab1 {[%emt 0:01:15]} Nh5 {[%emt 0:00:47]} 13. Bxe7 {[%emt 0:00:18]} Qxe7 {[%emt 0:00:08]} 14. b4 {[%emt 0:01:02]} axb4 {[%emt 0:00:07]} 15. axb4 {[%emt 0:00:04]} Nb6 {[%emt 0:00:09]} 16. Qb3 {[%emt 0:03:23]} Be6 {[%emt 0:02:01]} 17. Nd2 {[%emt 0:21:13]} Nf6 {[%emt 0:01:48]} 18. Qb2 {[%emt 0:05:11]} Nc4 {[%emt 0:04:58]} 19. Nxc4 {[%emt 0:01:16]} dxc4 {[%emt 0:00:11]} 20. Be2 {[%emt 0:00:03]} Bf5 {[%emt 0:02:36]} 21. Ra1 {[%emt 0:00:23]} b5 {[%emt 0:00:23]} 22. Ra3 {[%emt 0:10:00]} Rxa3 {[%emt 0:14:55]} 23. Qxa3 {[%emt 0:02:58]} Ne4 24. Nxe4 Bxe4 25. f3 Bd3 1/2-1/2

[Event "Torneo Interdepartamental 2019"]
[Site "Montevideo"]
[Date "2019.08.25"]
[Round "4.1"]
[White "Moreira, Marcelo"]
[Black "Curi, Gabriel"]
[Result "0-1"]
[ECO "D31"]
[WhiteElo "2061"]
[BlackElo "2195"]
[Annotator "NA"]
[PlyCount "50"]
[EventDate "2019.08.23"]
[EventType "team-tourn"]
[EventCountry "URU"]
[SourceTitle "playchess.com"]
[Source "ChessBase"]
[SourceQuality "1"]
[TimeControl "5400+30"]

1. d4 {[%emt 0:01:13]} e6 {[%emt 0:00:06]} 2. Nf3 {[%emt 0:00:11]} d5 {[%emt 0:00:16]} 3. c4 {[%emt 0:00:49]} c6 {[%emt 0:00:23]} 4. Nc3 {[%emt 0:00:44]} dxc4 {[%emt 0:00:16]} 5. g3 {[%emt 0:08:41]} b5 {[%emt 0:01:44]} 6. Bg2 {[%emt 0:00:09]} Bb7 {[%emt 0:00:20]} 7. O-O {[%emt 0:00:28]} Nd7 {[%emt 0:01:52]} 8. e4 {[%emt 0:02:18]} Ngf6 {[%emt 0:06:31]} 9. Qe2 {[%emt 0:01:42]} Be7 {[%emt 0:03:52]} 10. Rd1 {[%emt 0:00:36]} O-O {[%emt 0:00:44]} 11. Ne5 {[%emt 0:11:57]} Nxe5 {[%emt 0:06:00]} 12. dxe5 {[%emt 0:00:07]} Nd7 {[%emt 0:00:10]} 13. Bf4 {[%emt 0:01:23]} Qc7 {[%emt 0:01:43]} 14. Rxd7 {[%emt 0:06:20]} Qxd7 {[%emt 0:00:41]} 15. Qg4 {[%emt 0:00:10]} Rfd8 {[%emt 0:03:12]} 16. Bh6 {[%emt 0:00:36]} Bf8 {[%emt 0:00:33]} 17. Ne2 {[%emt 0:00:20]} Qc7 {[%emt 0:07:41]} 18. f4 {[%emt 0:01:19]} Kh8 {[%emt 0:01:21]} 19. Bg5 {[%emt 0:00:48]} Be7 {[%emt 0:00:57]} 20. Bf6 {[%emt 0:03:07]} gxf6 {[%emt 0:02:58]} 21. exf6 {[%emt 0:00:08]} Bxf6 {[%emt 0:00:37]} 22. e5 {[%emt 0:00:06]} Bxe5 {[%emt 0:10:09]} 23. fxe5 {[%emt 0:01:34]} Qxe5 {[%emt 0:00:29]} 24. Rf1 {[%emt 0:00:17]} Rd2 {[%emt 0:08:53]} 25. Rxf7 {[%emt 0:06:14]} Qe3+ {[%emt 0:06:10]} 0-1

[Event "Torneo Interdepartamental 2019"]
[Site "Montevideo"]
[Date "2019.08.25"]
[Round "4.2"]
[White "Coppola, Claudio"]
[Black "Ibanez, Juan Rodrigo"]
[Result "1-0"]
[ECO "D79"]
[WhiteElo "2252"]
[BlackElo "2124"]
[Annotator "NA"]
[PlyCount "107"]
[EventDate "2019.08.23"]
[EventType "team-tourn"]
[EventCountry "URU"]
[SourceTitle "playchess.com"]
[Source "ChessBase"]
[SourceQuality "1"]
[TimeControl "5400+30"]

1. d4 {[%emt 0:04:24]} Nf6 {[%emt 0:13:17]} 2. c4 {[%emt 0:00:06]} g6 {[%emt 0:00:05]} 3. g3 {[%emt 0:00:26]} Bg7 {[%emt 0:00:05]} 4. Bg2 {[%emt 0:00:03]} O-O {[%emt 0:00:05]} 5. Nf3 {[%emt 0:00:05]} c6 {[%emt 0:00:02]} 6. O-O {[%emt 0:00:12]} d5 {[%emt 0:00:03]} 7. cxd5 {[%emt 0:00:23]} cxd5 {[%emt 0:01:09]} 8. Ne5 {[%emt 0:01:42]} Be6 {[%emt 0:04:31]} 9. Nc3 {[%emt 0:01:04]} Nbd7 {[%emt 0:00:14]} 10. Bf4 {[%emt 0:18:49]} Qa5 {[%emt 0:17:03]} 11. Qb3 {[%emt 0:06:54]} Nb6 {[%emt 0:06:40]} 12. Nd3 {[%emt 0:28:56]} Ne4 {[%emt 0:05:14]} 13. Qb5 {[%emt 0:06:33]} Nc4 {[%emt 0:07:31]} 14. Qxa5 {[%emt 0:02:26]} Nxa5 {[%emt 0:00:02]} 15. Nb5 {[%emt 0:07:35]} Nc6 {[%emt 0:00:02]} 16. Be3 {[%emt 0:11:14]} Rac8 {[%emt 0:00:54]} 17. Nf4 {[%emt 0:00:42]} a6 {[%emt 0:00:49]} 18. Nc3 {[%emt 0:00:22]} Nxc3 {[%emt 0:05:02]} 19. bxc3 {[%emt 0:00:02]} Rfd8 {[%emt 0:00:06]} 20. Rab1 {[%emt 0:04:03]} Na5 {[%emt 0:00:09]} 21. Rb6 {[%emt 0:01:17]} Nc4 {[%emt 0:05:46]} 22. Nxe6 {[%emt 0:01:22]} Nxb6 {[%emt 0:00:25]} 23. Nxd8 {[%emt 0:00:07]} Rxd8 {[%emt 0:00:07]} 24. Rb1 {[%emt 0:00:08]} Rd6 {[%emt 0:00:29]} 25. a4 {[%emt 0:00:23]} a5 {[%emt 0:03:57]} 26. Rb5 {[%emt 0:00:08]} e6 {[%emt 0:03:12]} 27. Rxa5 {[%emt 0:00:47]} Bf8 {[%emt 0:03:03]} 28. Ra7 {[%emt 0:00:57]} Rc6 {[%emt 0:00:06]} 29. a5 {[%emt 0:00:53]} Nc4 {[%emt 0:00:02]} 30. Bf4 {[%emt 0:00:43]} f6 {[%emt 0:00:16]} 31. e4 {[%emt 0:01:00]} dxe4 {[%emt 0:01:59]} 32. Bxe4 {[%emt 0:00:01]} Ra6 {[%emt 0:00:11]} 33. Rxa6 {[%emt 0:00:04]} bxa6 {[%emt 0:00:03]} 34. Bc7 {[%emt 0:00:08]} Bd6 {[%emt 0:00:17]} 35. Bd8 {[%emt 0:00:13]} Kf7 {[%emt 0:01:45]} 36. Bd3 {[%emt 0:00:05]} Ke8 {[%emt 0:00:09]} 37. Bxf6 {[%emt 0:00:23]} Nxa5 {[%emt 0:00:05]} 38. Bxa6 {[%emt 0:00:09]} Ba3 {[%emt 0:00:38]} 39. Bg5 {[%emt 0:02:00]} Kd7 {[%emt 0:01:39]} 40. Kf1 {[%emt 0:00:20]} Kd6 {[%emt 0:00:18]} 41. Ke2 {[%emt 0:00:15]} e5 {[%emt 0:00:51]} 42. dxe5+ {[%emt 0:02:43]} Kxe5 {[%emt 0:00:08]} 43. Kd3 {[%emt 0:00:35]} Kd5 {[%emt 0:00:31]} 44. c4+ {[%emt 0:00:36]} Kd6 {[%emt 0:00:10]} 45. Bf4+ {[%emt 0:00:31]} Ke6 {[%emt 0:00:14]} 46. Bc8+ {[%emt 0:00:21]} Ke7 {[%emt 0:00:07]} 47. Kd4 {[%emt 0:00:32]} Nc6+ {[%emt 0:00:08]} 48. Kd5 {[%emt 0:00:36]} Nb4+ {[%emt 0:00:06]} 49. Ke4 {[%emt 0:00:12]} Nc6 {[%emt 0:00:37]} 50. Bb7 {[%emt 0:00:23]} Na5 {[%emt 0:00:04]} 51. Bd5 {[%emt 0:00:08]} Nb3 {[%emt 0:00:03]} 52. Bg8 {[%emt 0:01:18]} h5 {[%emt 0:00:07]} 53. Kd5 {[%emt 0:00:25]} Bc5 {[%emt 0:01:22]} 54. Be3 {[%emt 0:00:31]} 1-0